fUST/lending_fUST_20240726
["ID","MTS","AMOUNT","RATE_DAILY","PERIOD"]
[333206837,1721946633774,-162.5,0.00012125,2]
[333206838,1721946633788,-162.5,0.00012159,2]
[333206839,1721946633797,-162.5,0.00012192,2]
[333206840,1721946633807,-162.5,0.00012225,2]
[333206841,1721946633817,-162.5,0.00012258,2]
[333206842,1721946633827,-162.5,0.00012292,2]
[333206843,1721946633838,-162.5,0.00012325,2]
[333206844,1721946633848,-162.5,0.00012358,2]
[333206845,1721946633858,-162.5,0.00012391,2]
[333206846,1721946633868,-162.5,0.00012425,2]
[333206847,1721946633878,-162.5,0.00012458,2]
[333206848,1721946633888,-17.72687313,0.00012491,2]
[333206849,1721946633902,-144.77312687,0.00012491,2]
[333206850,1721946633913,-162.5,0.00012524,2]
[333206851,1721946633923,-162.5,0.00012558,2]
[333206852,1721946633934,-135.22685689,0.00012591,2]
[333206853,1721946633948,-27.27314311,0.00012591,2]
[333206854,1721946633957,-162.5,0.00012624,2]
[333206855,1721946633967,-162.5,0.00012657,2]
[333206856,1721946633977,-113.72685689,0.00012691,2]
[333206857,1721946633989,-48.77314311,0.00012691,2]
[333206858,1721946633999,-162.5,0.00012724,2]
[333206859,1721946634008,-162.5,0.00012757,2]
[333206860,1721946634019,-404.9594377,0.00013151,2]
[333206861,1721946634029,-2621.61110212,0.000132,2]
[333206882,1721946638322,-429.77318836,0.0001212,2]
[333206884,1721946638333,-2326.92567234,0.000132,2]
[333206888,1721946638363,-510.94687324,0.000132,2]
[333206907,1721946640691,-92224.81809757,0.000132,2]
[333206908,1721946640701,-293.9641968,0.000133,2]
[333206909,1721946640711,-306.0,0.000133,2]
[333206910,1721946640721,-153.0,0.000133,2]
[333206911,1721946640731,-206.7208342,0.000133,2]
[333206912,1721946640740,-153.0,0.000133,2]
[333206913,1721946640750,-153.0,0.000134,2]
[333206914,1721946640760,-200.0,0.00013425,2]
[333206915,1721946640770,-153.0,0.00013425,2]
[333206916,1721946640780,-153.0,0.00013425,2]
[333206917,1721946640791,-293.9641968,0.00013425,2]
[333206918,1721946640801,-153.0,0.00013425,2]
[333206919,1721946640811,-293.9641968,0.00013425,2]
[333206920,1721946640822,-293.9641968,0.00013425,2]
[333206921,1721946640832,-293.9641968,0.00013425,2]
[333206922,1721946640843,-153.0,0.00013425,2]
[333206923,1721946640852,-293.9641968,0.00013425,2]
[333206924,1721946640862,-153.0,0.00013425,2]
[333206925,1721946640872,-246.0721836,0.00013425,2]
[333206926,1721946640881,-153.0,0.00013425,2]
[333206927,1721946640892,-153.0,0.00013425,2]
[333206928,1721946640901,-153.0,0.00013425,2]
[333206929,1721946640911,-153.0,0.00013425,2]
[333206930,1721946640920,-153.0,0.00013425,2]
[333206931,1721946640929,-153.0,0.00013425,2]
[333206932,1721946640939,-153.0,0.00013425,2]
[333206933,1721946640948,-153.0,0.00013425,2]
[333206934,1721946640958,-153.0,0.00013425,2]
[333206935,1721946640968,-153.0,0.00013425,2]
[333206936,1721946640977,-5306.88604622,0.00013485,2]
[333206937,1721946640987,-290.18681439,0.0001359,2]
[333206938,1721946640998,-290.18681439,0.00013656,2]
[333206939,1721946641008,-184604.85535628,0.00013688,2]
[333206971,1721946643398,-2207.36820157,0.00013688,2]
[333206974,1721946643410,-1498.19336474,0.00013688,2]
[333206976,1721946643422,-3410.65,0.00013688,2]
[333206978,1721946643435,-879.275,0.00013688,2]
[333206980,1721946643447,-21035.42919762,0.00013688,2]
[333207735,1721946694968,-254.76706173,9.999e-05,2]
[333207736,1721946696599,-158.79319604,9.999e-05,2]
[333207740,1721946723831,-154.89787581,9.999e-05,2]
[333207741,1721946726747,-99.86918592,9.999e-05,2]
[333207742,1721946726774,-413.56025777,9.999e-05,2]
[333207743,1721946726798,-122.83443119,9.999e-05,2]
[333207747,1721946825419,-32.06344462,9.999e-05,2]
[333207748,1721946825448,-381.49681315,9.999e-05,2]
[333207749,1721946827674,-254.76706173,9.999e-05,2]
[333207750,1721947018333,-256.44909071,9.999e-05,2]
[333207751,1721947022802,-157.11116706,9.999e-05,2]
[333207752,1721947115380,-256.44909071,9.999e-05,2]
[333207753,1721947115403,-157.11116706,9.999e-05,2]
[333207754,1721947117611,-256.44909071,9.999e-05,2]
[333207755,1721947198054,-377.00813204,9.999e-05,2]
[333207756,1721947203279,-413.56025777,9.999e-05,2]
[333207757,1721947225861,-285.93068112,9.999e-05,2]
[333207758,1721947298312,-413.56025777,9.999e-05,2]
[333207759,1721947396928,-413.56025777,9.999e-05,2]
[333207760,1721947491426,-567.33746131,9.999e-05,2]
[333207761,1721947498526,-155.13729533,0.0001,2]
[333207762,1721947517690,-155.02603102,9.999e-05,2]
[333207763,1721947526898,-238.65970092,9.999e-05,2]
[333207764,1721947533965,-155.10969848,9.999e-05,2]
[333207765,1721947534626,-208.72954506,9.999e-05,2]
[333207766,1721947552914,-172.77789669,9.999e-05,2]
[333207767,1721947619719,-154.76012181,9.999e-05,2]
[333207768,1721947620831,-336.68355815,9.999e-05,2]
[333207769,1721947626574,-172.77789669,9.999e-05,2]
[333207770,1721947626602,-15.29588671,9.999e-05,2]
[333207771,1721947628264,-193.2959868,9.999e-05,2]
[333207772,1721947709347,-154.76012181,9.999e-05,2]
[333207773,1721947709372,-150.61672674,9.999e-05,2]
[333207774,1721947816681,-37.45705666,9.999e-05,2]
[333207775,1721947816704,-117.30306515,9.999e-05,2]
[333207776,1721947818484,-188.0737834,9.999e-05,2]
[333207917,1721947833387,-154.76012181,9.999e-05,2]
[333207919,1721947833397,-300.0,0.00010958,2]
[333207921,1721947833406,-300.0,0.00010958,2]
[333207924,1721947833416,-765.02926184,0.00011322,2]
[333207930,1721947833465,-4152.92155076,0.00011322,2]
[333207932,1721947833475,-254.2690163,0.00011324,2]
[333207934,1721947833485,-350.0,0.00011352,2]
[333207936,1721947833496,-250.0,0.0001136,2]
[333207938,1721947833506,-609.6965354,0.00011608,2]
[333207940,1721947833515,-250.0,0.0001163,2]
[333207942,1721947833526,-250.0,0.00011662,2]
[333207944,1721947833536,-250.0,0.00011694,2]
[333207947,1721947833547,-250.0,0.00011726,2]
[333207949,1721947833557,-250.0,0.00011758,2]
[333207951,1721947833567,-250.0,0.0001179,2]
[333207953,1721947833577,-250.0,0.00011821,2]
[333207954,1721947833587,-51.01429186,0.00011853,2]
[333208300,1721947838516,-198.98570814,0.00011853,2]
[333208301,1721947838525,-250.0,0.00011885,2]
[333208302,1721947838535,-250.0,0.00011917,2]
[333208303,1721947838544,-250.0,0.00011949,2]
[333208304,1721947838556,-250.0,0.00011981,2]
[333208305,1721947838567,-250.0,0.00012013,2]
[333208306,1721947838578,-420.0,0.00012042,2]
[333208307,1721947838589,-250.0,0.00012045,2]
[333208308,1721947838599,-420.0,0.00012054,2]
[333208309,1721947838609,-250.0,0.00012077,2]
[333208310,1721947838619,-250.0,0.00012108,2]
[333208311,1721947838630,-155.99983562,0.0001212,2]
[333208312,1721947838639,-250.0,0.0001214,2]
[333208313,1721947838648,-250.0,0.00012172,2]
[333208314,1721947838658,-250.0,0.00012204,2]
[333208315,1721947838668,-250.0,0.00012236,2]
[333208316,1721947838679,-276.956922,0.00012305,2]
[333208317,1721947838689,-153.0,0.00012678,2]
[333208318,1721947838699,-153.0,0.00012778,2]
[333208319,1721947838710,-394.9718355,0.00012778,2]
[333208320,1721947838723,-293.9641968,0.00013078,2]
[333208321,1721947838733,-153.0,0.00013078,2]
[333208322,1721947838744,-153.0,0.00013078,2]
[333208323,1721947838754,-587.0,0.00013259,2]
[333208324,1721947838765,-5306.88604622,0.00013344,2]
[333208325,1721947838775,-200.0,0.00013425,2]
[333208326,1721947838786,-622.04814408,0.0001354,2]
[333208327,1721947838798,-414.33249212,0.0001359,2]
[333208328,1721947838808,-414.33249208,0.00013592,2]
[333208331,1721947838819,-414.33249208,0.00013595,2]
[333208333,1721947838831,-414.33249208,0.00013597,2]
[333208335,1721947838842,-414.33249208,0.00013599,2]
[333208337,1721947838854,-26979.12522463,0.00013688,2]
[333208339,1721947838871,-274.14,0.00013688,2]
[333208346,1721947838923,-387.13,0.00010959,2]
[333208348,1721947838936,-781.44482,0.00013688,2]
[333208545,1721947842252,-32289.2005134,0.00013688,2]
[333208547,1721947842264,-1365.82188577,0.00013688,2]
[333208707,1721947843686,-6126.47154007,0.00013688,2]
[333209528,1721947903355,-188.0737834,9.999e-05,2]
[333209529,1721948770627,-187.84988275,9.999e-05,2]
[333209530,1721948770648,-343.63406552,9.999e-05,2]
[333209531,1721948771830,-187.84988275,9.999e-05,2]
[333209532,1721948830454,-158.31408871,9.999e-05,2]
[333209533,1721948881461,-531.48394827,9.999e-05,2]
[333209534,1721948975634,-531.48394827,9.999e-05,2]
[333209773,1721949042168,-300.0,0.00010958,2]
[333209774,1721949042179,-287.0,0.00010958,2]
[333209775,1721949042190,-728.67,0.00010959,2]
[333209776,1721949042201,-615.45,0.00010959,2]
[333209777,1721949042214,-420.0,0.00012054,2]
[333209778,1721949042226,-531.48394827,0.0001212,2]
[333209779,1721949042237,-2815.9977085,0.0001235,2]
[333209780,1721949042247,-166.666668,0.00012588,2]
[333209781,1721949042259,-166.666668,0.00012719,2]
[333209782,1721949042268,-166.666668,0.0001285,2]
[333209783,1721949042278,-166.666668,0.00012981,2]
[333209784,1721949042290,-150.112233,0.00013,2]
[333209785,1721949042300,-166.666668,0.00013112,2]
[333209786,1721949042310,-166.666668,0.00013244,2]
[333209787,1721949042320,-5306.88604622,0.00013258,2]
[333209788,1721949042330,-420.0,0.00013259,2]
[333209789,1721949042340,-200.0,0.00013425,2]
[333209791,1721949042350,-240.99304471,0.0001359,2]
[333209792,1721949042361,-3208.50850816,0.0001359,2]
[333209794,1721949042371,-240.9930447,0.00013592,2]
[333209796,1721949042382,-240.9930447,0.00013594,2]
[333209798,1721949042391,-240.9930447,0.00013596,2]
[333209800,1721949042401,-240.9930447,0.00013598,2]
[333209802,1721949042411,-153.0,0.000136,2]
[333209805,1721949042424,-88208.46000302,0.00013688,2]
[333209951,1721949043682,-763.96154133,0.00013688,2]
[333213356,1721949134651,-540.91809557,9.999e-05,2]
[333213357,1721949221261,1604.15825564,0.00025,120]
[333213358,1721949769867,-306.9053522,9.999e-05,2]
[333213359,1721949932899,-156.17659771,9.999e-05,2]
[333213360,1721949932922,-37.59901367,9.999e-05,2]
[333213361,1721949933845,-156.17659771,9.999e-05,2]
[333213362,1721949990099,-300.0,0.00010958,2]
[333213363,1721949990124,-0.0147669,0.00010958,2]
[333213364,1721950035701,-187.96815385,9.999e-05,2]
[333213365,1721950043716,-726.64238482,9.999e-05,2]
[333213366,1721950043742,-78.63754859,9.999e-05,2]
[333213367,1721950044965,-726.64238482,9.999e-05,2]
[333213368,1721950059494,-154.86073047,9.999e-05,2]
[333213369,1721950063214,-184.41760437,9.999e-05,2]
[333213370,1721950082527,-156.05197447,9.999e-05,2]
[333213371,1721950098105,-220.95676023,9.999e-05,2]
[333213372,1721950106424,-154.77557542,9.999e-05,2]
[333213373,1721950117599,-220.22655659,9.999e-05,2]
[333214106,1721950239097,-300.0,0.00010958,2]
[333214108,1721950239107,-746.21,0.00010959,2]
[333214110,1721950239117,-926.91,0.00010959,2]
[333214111,1721950239127,-772.43,0.00010959,2]
[333214113,1721950239137,-643.69,0.00010959,2]
[333214115,1721950239147,-908.0294949,0.0001109,2]
[333214117,1721950239157,-250.0,0.00011267,2]
[333214119,1721950239166,-250.0,0.00011298,2]
[333214121,1721950239177,-250.0,0.00011329,2]
[333214123,1721950239186,-250.0,0.0001136,2]
[333214126,1721950239201,-250.0,0.00011391,2]
[333214128,1721950239211,-250.0,0.00011422,2]
[333214130,1721950239220,-250.0,0.00011453,2]
[333214132,1721950239231,-250.0,0.00011484,2]
[333214134,1721950239240,-250.0,0.00011514,2]
[333214136,1721950239250,-250.0,0.00011545,2]
[333214138,1721950239260,-250.0,0.00011576,2]
[333214139,1721950239269,-250.0,0.00011607,2]
[333214142,1721950239279,-250.0,0.00011638,2]
[333214144,1721950239289,-250.0,0.00011669,2]
[333214146,1721950239299,-287.0,0.00011681,2]
[333214148,1721950239309,-24900.0,0.00011682,2]
[333214150,1721950239319,-250.0,0.000117,2]
[333214152,1721950239328,-250.0,0.00011731,2]
[333214154,1721950239338,-250.0,0.00011762,2]
[333214156,1721950239348,-250.0,0.00011793,2]
[333214158,1721950239357,-250.0,0.00011824,2]
[333214160,1721950239367,-250.0,0.00011854,2]
[333214162,1721950239376,-420.0,0.00012054,2]
[333214164,1721950239386,-3460.64347397,0.000129,2]
[333214166,1721950239395,-509.97787155,0.000129,2]
[333214168,1721950239405,-4499.99999901,0.00012997,2]
[333214170,1721950239414,-5306.88604622,0.00013159,2]
[333214172,1721950239424,-92042.1608373,0.000132,2]
[333214174,1721950239434,-587.0,0.00013259,2]
[333214176,1721950239448,-200.0,0.00013425,2]
[333214178,1721950239457,-620.10490464,0.00013506,2]
[333214180,1721950239467,-307.9964411,0.00013534,2]
[333214182,1721950239476,-587.7498732,0.00013534,2]
[333214184,1721950239485,-153.0,0.00013534,2]
[333214186,1721950239494,-306.0,0.00013534,2]
[333214188,1721950239503,-153.0,0.00013534,2]
[333214190,1721950239514,-153.0,0.00013534,2]
[333214192,1721950239524,-206.7208342,0.00013534,2]
[333214194,1721950239538,-206.7208342,0.00013534,2]
[333214196,1721950239548,-153.0,0.00013534,2]
[333214198,1721950239557,-153.0,0.00013534,2]
[333214201,1721950239567,-206.7208342,0.00013534,2]
[333214203,1721950239578,-153.0,0.00013534,2]
[333214205,1721950239589,-153.0,0.00013534,2]
[333214207,1721950239599,-206.3840714,0.00013534,2]
[333214209,1721950239608,-153.0,0.00013534,2]
[333214211,1721950239619,-153.0,0.00013534,2]
[333214213,1721950239629,-153.0,0.00013534,2]
[333214215,1721950239639,-153.0,0.00013534,2]
[333214217,1721950239649,-153.0,0.00013534,2]
[333214219,1721950239659,-153.0,0.00013534,2]
[333214221,1721950239669,-153.0,0.00013534,2]
[333214223,1721950239679,-306.0,0.00013534,2]
[333214225,1721950239689,-3460.64347395,0.00013576,2]
[333214227,1721950239702,-481.98608942,0.00013588,2]
[333214229,1721950239712,-1245.26467162,0.00013588,2]
[333214231,1721950239721,-736.75996205,0.00013588,2]
[333214233,1721950239730,-481.98608941,0.00013591,2]
[333214235,1721950239739,-481.98608941,0.00013593,2]
[333214237,1721950239749,-481.98608941,0.00013596,2]
[333214239,1721950239759,-481.98608941,0.00013598,2]
[333214241,1721950239768,-200.0,0.00013598,2]
[333214243,1721950239778,-5082.083116,0.000136,2]
[333214245,1721950239788,-120462.381237,0.0001368,2]
[333214247,1721950239797,-151.0,0.00013688,2]
[333214249,1721950239807,-151.0,0.00013688,2]
[333214251,1721950239816,-151.0,0.00013688,2]
[333214253,1721950239825,-151.0,0.00013688,2]
[333214255,1721950239835,-361387.143711,0.00013688,2]
[333214257,1721950239845,-59610.2255468,0.0001369,2]
[333214259,1721950239855,-151.0,0.0001369,2]
[333214261,1721950239865,-151.0,0.0001369,2]
[333214263,1721950239876,-151.0,0.0001369,2]
[333214265,1721950239886,-151.0,0.0001369,2]
[333214267,1721950239896,-151.0,0.0001369,2]
[333214269,1721950239907,-151.0,0.0001369,2]
[333214271,1721950239917,-151.0,0.0001369,2]
[333214273,1721950239927,-151.0,0.0001369,2]
[333214276,1721950239938,-151.0,0.0001369,2]
[333214278,1721950239951,-151.0,0.0001369,2]
[333214280,1721950239961,-151.0,0.0001369,2]
[333214282,1721950239971,-151.0,0.0001369,2]
[333214284,1721950239981,-206.303723,0.0001369,2]
[333214286,1721950239991,-151.0,0.0001369,2]
[333214288,1721950240001,-206.303723,0.0001369,2]
[333214290,1721950240011,-655.879974,0.0001369,2]
[333214292,1721950240022,-655.879974,0.0001369,2]
[333214294,1721950240032,-151.0,0.0001369,2]
[333214296,1721950240041,-151.0,0.0001369,2]
[333214298,1721950240051,-5191.13278421,0.0001369,2]
[333214300,1721950240060,-500.0,0.00013698,2]
[333214302,1721950240069,-500.0,0.00013698,2]
[333214304,1721950240079,-500.0,0.00013698,2]
[333214306,1721950240088,-500.0,0.00013698,2]
[333214308,1721950240097,-500.0,0.00013698,2]
[333214310,1721950240106,-500.0,0.00013698,2]
[333214312,1721950240117,-500.0,0.00013698,2]
[333214314,1721950240127,-500.0,0.00013698,2]
[333214316,1721950240138,-500.0,0.00013698,2]
[333214318,1721950240149,-552.74,0.00013698,2]
[333214320,1721950240159,-631.59,0.00013698,2]
[333214323,1721950240169,-631.59,0.00013698,2]
[333214325,1721950240179,-631.59,0.00013698,2]
[333214327,1721950240190,-631.59,0.00013698,2]
[333214329,1721950240204,-631.59,0.00013698,2]
[333214331,1721950240216,-631.59,0.00013698,2]
[333214334,1721950240227,-631.59,0.00013698,2]
[333214336,1721950240238,-631.59,0.00013698,2]
[333214338,1721950240250,-631.59,0.00013698,2]
[333214340,1721950240262,-631.59,0.00013698,2]
[333214342,1721950240273,-631.59,0.00013698,2]
[333214345,1721950240284,-631.59,0.00013698,2]
[333214347,1721950240295,-631.59,0.00013698,2]
[333214349,1721950240308,-631.59,0.00013698,2]
[333214351,1721950240319,-631.59,0.00013698,2]
[333214353,1721950240329,-631.59,0.00013698,2]
[333214356,1721950240340,-631.59,0.00013698,2]
[333214358,1721950240352,-631.59,0.00013698,2]
[333214360,1721950240363,-631.59,0.00013698,2]
[333214363,1721950240375,-631.59,0.00013698,2]
[333214365,1721950240385,-631.59,0.00013698,2]
[333214367,1721950240395,-631.59,0.00013698,2]
[333214369,1721950240406,-631.59,0.00013698,2]
[333214371,1721950240417,-631.65,0.00013698,2]
[333214373,1721950240426,-151.0,0.00013698,2]
[333214375,1721950240436,-151.0,0.00013698,2]
[333214377,1721950240446,-151.0,0.00013698,2]
[333214379,1721950240456,-500.0,0.00013698,2]
[333214381,1721950240466,-500.0,0.00013698,2]
[333214384,1721950240479,-500.0,0.00013698,2]
[333214386,1721950240490,-500.0,0.00013698,2]
[333214388,1721950240504,-500.0,0.00013698,2]
[333214390,1721950240514,-500.0,0.00013698,2]
[333214392,1721950240524,-500.0,0.00013698,2]
[333214395,1721950240536,-500.0,0.00013698,2]
[333214396,1721950240547,-500.0,0.00013698,2]
[333214399,1721950240558,-500.0,0.00013698,2]
[333214401,1721950240569,-500.0,0.00013698,2]
[333214403,1721950240579,-500.0,0.00013698,2]
[333214405,1721950240589,-500.0,0.00013698,2]
[333214407,1721950240599,-500.0,0.00013698,2]
[333214409,1721950240608,-488.34485218,0.00013698,2]
[333214411,1721950240620,-165.235471,0.00013698,2]
[333214413,1721950240630,-165.235471,0.00013698,2]
[333214415,1721950240640,-165.235471,0.00013698,2]
[333214417,1721950240651,-165.235471,0.00013698,2]
[333214420,1721950240663,-165.235471,0.00013698,2]
[333214422,1721950240674,-165.235471,0.00013698,2]
[333214424,1721950240684,-165.235471,0.00013698,2]
[333214426,1721950240696,-165.235471,0.00013698,2]
[333214428,1721950240708,-165.235471,0.00013698,2]
[333214431,1721950240720,-165.235471,0.00013698,2]
[333214433,1721950240732,-165.235471,0.00013698,2]
[333214435,1721950240743,-165.235471,0.00013698,2]
[333214437,1721950240754,-151.0,0.00013698,2]
[333214440,1721950240766,-151.0,0.00013698,2]
[333214442,1721950240777,-151.0,0.00013698,2]
[333214444,1721950240788,-151.0,0.00013698,2]
[333214446,1721950240799,-2315.84,0.00013698,2]
[333214448,1721950240811,-2315.84,0.00013698,2]
[333214451,1721950240821,-2315.84,0.00013698,2]
[333214453,1721950240833,-2315.84,0.00013698,2]
[333214455,1721950240844,-2315.84,0.00013698,2]
[333214457,1721950240854,-2315.84,0.00013698,2]
[333214459,1721950240865,-2315.84,0.00013698,2]
[333214462,1721950240878,-2315.84,0.00013698,2]
[333214464,1721950240888,-2315.84,0.00013698,2]
[333214466,1721950240899,-2315.84,0.00013698,2]
[333214468,1721950240911,-2315.84,0.00013698,2]
[333214470,1721950240922,-2315.84,0.00013698,2]
[333214473,1721950240934,-2315.84,0.00013698,2]
[333214475,1721950240947,-2315.84,0.00013698,2]
[333214477,1721950240956,-2315.84,0.00013698,2]
[333214479,1721950240967,-2315.84,0.00013698,2]
[333214482,1721950240979,-2315.84,0.00013698,2]
[333214484,1721950240989,-2315.84,0.00013698,2]
[333214486,1721950241001,-2315.84,0.00013698,2]
[333214488,1721950241013,-2315.84,0.00013698,2]
[333214490,1721950241026,-2315.84,0.00013698,2]
[333214493,1721950241037,-2315.84,0.00013698,2]
[333214495,1721950241049,-2315.84,0.00013698,2]
[333214497,1721950241061,-2315.97950591,0.00013698,2]
[333214499,1721950241070,-507.66934,0.00013698,2]
[333214501,1721950241081,-2861.48963333,0.00013698,2]
[333214503,1721950241091,-151.0,0.00013698,2]
[333214505,1721950241100,-151.0,0.00013698,2]
[333214508,1721950241111,-151.0,0.00013698,2]
[333214510,1721950241121,-151.0,0.00013698,2]
[333214512,1721950241133,-151.0,0.00013698,2]
[333214514,1721950241143,-151.0,0.00013698,2]
[333214516,1721950241153,-173.961528,0.00013698,2]
[333214518,1721950241165,-151.0,0.00013698,2]
[333214520,1721950241174,-151.0,0.00013698,2]
[333214522,1721950241184,-151.0,0.00013698,2]
[333214524,1721950241194,-151.0,0.00013698,2]
[333214526,1721950241204,-151.0,0.00013698,2]
[333214528,1721950241214,-151.0,0.00013698,2]
[333214531,1721950241224,-500.0,0.00013698,2]
[333214533,1721950241233,-162.162061,0.00013698,2]
[333214535,1721950241242,-151.0,0.00013698,2]
[333214536,1721950241251,-151.0,0.00013698,2]
[333214539,1721950241262,-151.0,0.00013698,2]
[333214541,1721950241271,-151.0,0.00013698,2]
[333214543,1721950241283,-151.0,0.00013698,2]
[333214545,1721950241294,-151.0,0.00013698,2]
[333214547,1721950241305,-501.54052837,0.00013698,2]
[333214549,1721950241315,-151.0,0.00013698,2]
[333214552,1721950241328,-500.0,0.00013698,2]
[333214554,1721950241339,-500.0,0.00013698,2]
[333214556,1721950241352,-442.63676815,0.00013698,2]
[333214558,1721950241362,-500.0,0.00013698,2]
[333214561,1721950241372,-500.0,0.00013698,2]
[333214563,1721950241383,-500.0,0.00013698,2]
[333214565,1721950241394,-500.0,0.00013698,2]
[333214567,1721950241404,-500.0,0.00013698,2]
[333214569,1721950241416,-500.0,0.00013698,2]
[333214572,1721950241429,-500.0,0.00013698,2]
[333214574,1721950241440,-500.0,0.00013698,2]
[333214576,1721950241451,-500.0,0.00013698,2]
[333214578,1721950241461,-504.57876301,0.00013698,2]
[333214580,1721950241475,-536.0,0.00013698,2]
[333214582,1721950241484,-590.28328048,0.00013698,2]
[333214584,1721950241494,-500.0,0.00013698,2]
[333214586,1721950241503,-500.0,0.00013698,2]
[333214588,1721950241512,-500.0,0.00013698,2]
[333214590,1721950241523,-500.0,0.00013698,2]
[333214592,1721950241538,-500.0,0.00013698,2]
[333214594,1721950241548,-500.0,0.00013698,2]
[333214596,1721950241559,-500.0,0.00013698,2]
[333214598,1721950241569,-500.0,0.00013698,2]
[333214600,1721950241579,-507.9968983,0.00013698,2]
[333214602,1721950241588,-602.29061153,0.00013698,2]
[333214604,1721950241599,-500.0,0.00013698,2]
[333214606,1721950241611,-592.80057666,0.00013698,2]
[333214608,1721950241621,-500.0,0.00013698,2]
[333214610,1721950241630,-500.0,0.00013698,2]
[333214612,1721950241640,-500.0,0.00013698,2]
[333214614,1721950241649,-500.0,0.00013698,2]
[333214616,1721950241659,-500.0,0.00013698,2]
[333214619,1721950241672,-500.0,0.00013698,2]
[333214621,1721950241682,-500.0,0.00013698,2]
[333214623,1721950241693,-516.34041717,0.00013698,2]
[333214625,1721950241704,-502.23438961,0.00013698,2]
[333214627,1721950241713,-500.0,0.00013698,2]
[333214629,1721950241722,-500.0,0.00013698,2]
[333214631,1721950241732,-881.29,0.00013698,2]
[333214632,1721950241742,-500.0,0.00013698,2]
[333214633,1721950241751,-500.0,0.00013698,2]
[333214634,1721950241761,-500.0,0.00013698,2]
[333214635,1721950241770,-509.83240982,0.00013698,2]
[333214636,1721950241780,-500.0,0.00013698,2]
[333214637,1721950241789,-500.0,0.00013698,2]
[333214638,1721950241800,-500.0,0.00013698,2]
[333214639,1721950241810,-503.80729936,0.00013698,2]
[333214640,1721950241819,-500.0,0.00013698,2]
[333214641,1721950241829,-500.0,0.00013698,2]
[333214642,1721950241838,-509.44817324,0.00013698,2]
[333214643,1721950241848,-500.0,0.00013698,2]
[333214644,1721950241857,-519.19876907,0.00013698,2]
[333214645,1721950241867,-500.0,0.00013698,2]
[333214646,1721950241877,-500.0,0.00013698,2]
[333214647,1721950241887,-500.0,0.00013698,2]
[333214648,1721950241897,-500.0,0.00013698,2]
[333214650,1721950241908,-514.27781184,0.00013698,2]
[333214652,1721950241918,-514.36791962,0.00013698,2]
[333214655,1721950241928,-509.97117062,0.00013698,2]
[333214657,1721950241941,-506.80398208,0.00013698,2]
[333214659,1721950241953,-500.0,0.00013698,2]
[333214661,1721950241964,-500.0,0.00013698,2]
[333214664,1721950241975,-500.0,0.00013698,2]
[333214666,1721950241985,-460.24857475,0.00013698,2]
[333214668,1721950241997,-525.45,0.00013698,2]
[333214670,1721950242009,-517.98,0.00013698,2]
[333214672,1721950242019,-500.0,0.00013698,2]
[333214675,1721950242031,-500.0,0.00013698,2]
[333214677,1721950242043,-151.0,0.00013698,2]
[333214679,1721950242054,-151.0,0.00013698,2]
[333214681,1721950242065,-151.0,0.00013698,2]
[333214684,1721950242076,-152.016999,0.00013698,2]
[333214686,1721950242087,-500.0,0.00013698,2]
[333214688,1721950242098,-500.0,0.00013698,2]
[333214690,1721950242109,-500.0,0.00013698,2]
[333214692,1721950242120,-500.0,0.00013698,2]
[333214694,1721950242132,-500.0,0.00013698,2]
[333214696,1721950242143,-518.93918711,0.00013698,2]